bitfinex-derivatives/quotes_BTCF0:USTF0_20251028
["timestamp","ask_amount","ask_price","bid_price","bid_amount"]
[1761643804664,0.001,114280.0,114270.0,0.40555422]
[1761643804849,0.02507,114280.0,114270.0,0.25579766]
[1761643805253,0.02407,114280.0,114270.0,0.25579766]
[1761643805556,0.02397,114280.0,114270.0,0.25579766]
[1761643805757,0.03477,114290.0,114280.0,0.1020329]
[1761643806064,0.03477,114290.0,114280.0,0.48406586]
[1761643806254,0.05583,114290.0,114280.0,0.48406586]
[1761643806857,0.05525,114300.0,114290.0,0.1020259]
[1761643807065,0.0559,114310.0,114300.0,0.1020183]
[1761643807360,0.0559,114310.0,114300.0,0.40553142]
[1761643808154,0.02163,114310.0,114300.0,0.40553142]
[1761643808359,0.0559,114320.0,114310.0,0.1020108]
[1761643808550,0.0559,114320.0,114310.0,0.25376736]
[1761643809154,0.03427,114320.0,114310.0,0.25376736]
[1761643809461,0.0559,114330.0,114320.0,0.1020029]
[1761643809757,0.0559,114330.0,114320.0,0.25375946]
[1761643810659,0.0592,114320.0,114310.0,0.1030048]
[1761643810865,0.36271312,114320.0,114310.0,0.1030048]
[1761643811254,0.20795656,114320.0,114310.0,0.1020048]
[1761643811455,0.20795656,114320.0,114310.0,0.1127139]
[1761643811665,0.35971312,114320.0,114310.0,0.1020107]
[1761643811867,0.20795656,114320.0,114310.0,0.1020107]
[1761643812058,0.21095656,114320.0,114310.0,0.1030107]
[1761643812965,0.21095656,114320.0,114310.0,0.1030105]
[1761643813664,0.36271312,114320.0,114310.0,0.1030105]
[1761643813860,0.35971312,114320.0,114310.0,0.1020105]
[1761643814058,0.36471312,114320.0,114310.0,0.1040105]
[1761643814456,0.36471312,114320.0,114310.0,0.0894905]
[1761643814769,0.0562,114280.0,114270.0,0.11296752]
[1761643814972,0.20795656,114280.0,114270.0,0.26472408]
[1761643815260,0.20795656,114280.0,114270.0,0.11296752]
[1761643815661,0.20795656,114280.0,114270.0,0.01452]
[1761643815863,0.01329,114270.0,114260.0,0.01452]
[1761643816056,0.20795656,114270.0,114260.0,0.1020492]
[1761643816255,0.20795656,114270.0,114260.0,0.0947892]
[1761643816462,0.20795656,114270.0,114260.0,0.1020492]
[1761643816867,0.0562,114270.0,114260.0,0.25380576]
[1761643817062,0.20795656,114270.0,114260.0,0.25380576]
[1761643817668,0.21295656,114270.0,114260.0,0.25680576]
[1761643818070,0.20795656,114270.0,114260.0,0.25480576]
[1761643818265,0.21095656,114270.0,114260.0,0.25580576]
[1761643818464,0.21095656,114270.0,114260.0,0.25480576]
[1761643822177,0.0592,114270.0,114260.0,0.25480576]
[1761643822472,0.21095656,114270.0,114260.0,0.25480576]
[1761643823374,0.0592,114270.0,114260.0,0.25480576]
[1761643824172,0.21095656,114270.0,114260.0,0.25480576]
[1761643826273,0.0592,114270.0,114260.0,0.25480576]
[1761643826476,0.21095656,114270.0,114260.0,0.25480576]
[1761643826874,0.0592,114270.0,114260.0,0.40656232]
[1761643827771,0.0592,114270.0,114260.0,0.25470973]
[1761643829779,0.0592,114270.0,114260.0,0.1030492]
[1761643829981,0.0592,114270.0,114260.0,0.25470973]
[1761643833186,0.0592,114270.0,114260.0,0.1030492]
[1761643833391,0.0592,114270.0,114260.0,0.25470973]
[1761643834578,0.02463,114270.0,114260.0,0.25470973]
[1761643834785,0.003,114270.0,114260.0,0.33322957]
[1761643835192,0.02518,114270.0,114260.0,0.33322957]
[1761643836886,0.02518,114270.0,114260.0,0.25470973]
[1761643837285,0.02518,114270.0,114260.0,0.33322957]
[1761643837491,0.04737,114270.0,114260.0,0.33322957]
[1761643838090,0.04737,114270.0,114260.0,0.25470973]
[1761643839190,0.06103,114270.0,114260.0,0.25470973]
[1761643844988,0.003,114270.0,114260.0,0.40637026]
[1761643845186,0.01329,114290.0,114260.0,0.40637026]
[1761643845187,0.05766,114300.0,114290.0,0.1020235]
[1761643845390,0.05766,114300.0,114290.0,0.25368403]
[1761643845590,0.05766,114300.0,114290.0,0.33240383]
[1761643846401,0.06666,114300.0,114290.0,0.33240383]
[1761643847201,0.06566,114300.0,114290.0,0.33240383]
[1761643847390,0.05766,114300.0,114290.0,0.33240383]
[1761643847591,0.06066,114300.0,114290.0,0.33240383]
[1761643858196,0.06066,114300.0,114290.0,0.25368403]
[1761643862111,0.02518,114300.0,114290.0,0.25368403]
[1761643862309,0.04841,114300.0,114290.0,0.25368403]
[1761643862609,0.06116,114300.0,114290.0,0.25368403]
[1761643863005,0.06116,114300.0,114290.0,0.1020235]
[1761643863203,0.06116,114300.0,114290.0,0.25368403]
[1761643865307,0.02518,114300.0,114290.0,0.34117692]
[1761643866106,0.04841,114300.0,114290.0,0.34117692]
[1761643869308,0.04841,114300.0,114290.0,0.41989672]
[1761643872118,0.04841,114300.0,114290.0,0.26823619]
[1761643872318,0.04841,114300.0,114290.0,0.41989672]
[1761643872817,0.003,114300.0,114290.0,0.41989672]
[1761643873214,0.05897,114310.0,114300.0,0.25367903]
[1761643873721,0.05897,114310.0,114300.0,0.33239883]
[1761643874420,0.05897,114310.0,114300.0,0.44226215]
[1761643874627,0.05897,114310.0,114300.0,0.36354235]
[1761643875116,0.04474991,114310.0,114300.0,0.36354235]
[1761643875320,0.06166991,114310.0,114300.0,0.36954235]
[1761643879730,0.06166991,114310.0,114300.0,0.21788182]
[1761643879925,0.06166991,114310.0,114300.0,0.36954235]
[1761643883327,0.06166991,114310.0,114300.0,0.44820307]
[1761643883527,0.06166991,114310.0,114300.0,0.33833975]
[1761643889814,0.06166991,114310.0,114300.0,0.48982072]
[1761643897336,0.06166991,114310.0,114300.0,0.41116]
[1761643898536,0.06166991,114310.0,114300.0,0.52102332]
[1761643898730,0.04774991,114310.0,114300.0,0.52102332]
[1761643898936,0.04774991,114310.0,114300.0,0.21788182]
[1761643899136,0.04774991,114310.0,114300.0,0.52102332]
[1761643899839,0.06036991,114310.0,114300.0,0.52102332]
[1761643902240,0.03353008,114310.0,114300.0,0.53378332]
[1761643903341,0.003,114310.0,114300.0,0.53378332]
[1761643903938,0.003,114310.0,114300.0,0.7728393]
[1761643904140,0.003,114310.0,114300.0,0.51140523]
[1761643904337,0.01366,114330.0,114320.0,0.04622]
[1761643904338,0.05787,114330.0,114320.0,0.04622]
[1761643904532,0.20944075,114330.0,114320.0,0.19779075]
[1761643904732,0.05787,114330.0,114320.0,0.19779075]
[1761643905035,0.05787,114330.0,114320.0,0.28527395]
[1761643905236,0.20944075,114330.0,114320.0,0.28527395]
[1761643905435,0.05787,114330.0,114320.0,0.4368447]
[1761643905639,0.05787,114330.0,114320.0,0.28527395]
[1761643906038,0.04721,114330.0,114320.0,0.4456747]
[1761643906238,0.04721,114330.0,114320.0,0.52442694]
[1761643906543,0.04821,114330.0,114320.0,0.52442694]
[1761643908437,0.04821,114330.0,114320.0,0.5368142]
[1761643909841,0.04821,114330.0,114320.0,0.45806196]
[1761643910237,0.004,114330.0,114320.0,0.45806196]
[1761643910437,0.02637,114330.0,114320.0,0.45806196]
[1761643910637,0.04821,114330.0,114320.0,0.45806196]
[1761643911442,0.04821,114330.0,114320.0,0.53671574]
[1761643913850,0.004,114330.0,114320.0,0.23357424]
[1761643914040,0.004,114330.0,114320.0,0.53671574]
[1761643914240,0.004,114330.0,114320.0,0.60522532]
[1761643914848,0.02637,114330.0,114320.0,0.60522532]
[1761643916047,0.02637,114330.0,114320.0,0.53671574]
[1761643917753,0.04821,114330.0,114320.0,0.3031404]
[1761643917953,0.04821,114330.0,114320.0,0.6062819]
[1761643918950,0.04821,114330.0,114320.0,0.52762812]
[1761643922542,0.04821,114330.0,114320.0,0.6062819]
[1761643926856,0.04821,114330.0,114320.0,0.53671574]
[1761643939973,0.004,114330.0,114320.0,0.53671574]
[1761643941278,0.004,114330.0,114320.0,0.45806196]
[1761643941776,0.21326075,114330.0,114320.0,0.05921726]
[1761643941973,0.21326075,114330.0,114320.0,0.22539885]
[1761643942166,0.21326075,114330.0,114320.0,0.3769696]
[1761643943772,0.06169,114330.0,114320.0,0.3769696]
[1761643943973,0.21326075,114330.0,114320.0,0.3769696]
[1761643944981,0.06169,114330.0,114320.0,0.3769696]
[1761643945184,0.21326075,114330.0,114320.0,0.3769696]
[1761643947082,0.21326075,114330.0,114320.0,0.29826881]
[1761643949479,0.21326075,114330.0,114320.0,0.14669806]
[1761643949679,0.21326075,114330.0,114320.0,0.29826881]
[1761643951686,0.06169,114330.0,114320.0,0.14669806]
[1761643957879,0.21322546,114330.0,114320.0,0.14669806]
[1761643958288,0.06169,114330.0,114320.0,0.14669806]
[1761643961991,0.30069926,114330.0,114320.0,0.10367079]
[1761643962291,0.45223472,114330.0,114320.0,0.002]
[1761643962595,0.30069926,114330.0,114320.0,0.002]
[1761643963797,0.30069926,114330.0,114320.0,0.0894828]
[1761643965993,0.06169,114330.0,114320.0,0.1341328]
[1761643966200,0.21322546,114330.0,114320.0,0.1341328]
[1761643967301,0.81322546,114330.0,114320.0,0.1341328]
[1761643967492,0.90069926,114330.0,114320.0,0.1341328]
[1761643969390,0.81322546,114330.0,114320.0,0.1341328]
[1761643969697,0.66169,114330.0,114320.0,0.1341328]
[1761643970197,0.7491637,114330.0,114320.0,0.1341328]
[1761643970497,0.66169,114330.0,114320.0,0.1341328]
[1761643971697,0.7491637,114330.0,114320.0,0.1341328]
[1761643972393,0.1491637,114330.0,114320.0,0.1341328]
[1761643972595,0.004,114330.0,114320.0,0.37119905]
[1761643974301,0.05855,114350.0,114340.0,0.1321159]
[1761643974496,0.05855,114350.0,114340.0,0.28365136]
[1761643974797,0.05855,114350.0,114340.0,0.1321155]
[1761643975793,0.06355,114350.0,114340.0,0.1341155]
[1761643977005,0.06555,114350.0,114340.0,0.1341155]
[1761643981304,0.1530085,114350.0,114340.0,0.1341155]
[1761643982405,0.06555,114350.0,114340.0,0.1341155]
[1761643984005,0.30454516,114350.0,114340.0,0.0894673]
[1761643985102,0.30454516,114350.0,114340.0,0.1347973]
[1761643986197,0.1530097,114350.0,114340.0,0.1347973]
[1761643993813,0.30454516,114350.0,114340.0,0.1347973]
[1761643996219,0.1530097,114350.0,114340.0,0.1347973]
[1761644002513,0.06555,114350.0,114340.0,0.1347973]
[1761644002715,0.1530098,114350.0,114340.0,0.1347973]
[1761644008021,0.06555,114350.0,114340.0,0.1347973]
[1761644008316,0.05293,114350.0,114340.0,0.29902276]
[1761644008522,0.05293,114350.0,114340.0,0.1474873]
[1761644008821,0.06571,114350.0,114340.0,0.1347973]
[1761644010211,0.06571,114350.0,114340.0,0.21352161]
[1761644011821,0.05293,114350.0,114340.0,0.37774707]
[1761644013319,0.05293,114350.0,114340.0,0.29902276]
[1761644013719,0.05293,114350.0,114340.0,0.45041978]
[1761644017827,0.06571,114350.0,114340.0,0.1347973]
[1761644018027,0.06571,114350.0,114340.0,0.28626354]
[1761644020025,0.06571,114350.0,114340.0,0.1347973]
[1761644020225,0.06571,114350.0,114340.0,0.28626354]
[1761644020430,0.21717624,114350.0,114340.0,0.28626354]
[1761644021326,0.06571,114350.0,114340.0,0.28626354]
[1761644023528,0.06571,114350.0,114340.0,0.1347973]
[1761644023826,0.21717624,114350.0,114340.0,0.28626354]
[1761644024426,0.21717624,114350.0,114340.0,0.36498785]
[1761644026327,0.21717624,114350.0,114340.0,0.28626354]
[1761644027629,0.21717624,114350.0,114340.0,0.1347973]
[1761644027930,0.21717624,114350.0,114340.0,0.28626354]
[1761644029535,0.06571,114350.0,114340.0,0.28626354]
[1761644029736,0.21717624,114350.0,114340.0,0.28626354]
[1761644035339,0.06571,114350.0,114340.0,0.45041978]
[1761644036342,0.06571,114350.0,114340.0,0.52914409]
[1761644036641,0.05293,114350.0,114340.0,0.52914409]
[1761644039540,0.02984,114350.0,114340.0,0.52914409]
[1761644039733,0.05214,114350.0,114340.0,0.52914409]
[1761644042845,0.06566,114350.0,114340.0,0.52914409]
[1761644043249,0.05214,114350.0,114340.0,0.52914409]
[1761644043455,0.02984,114350.0,114340.0,0.52914409]
[1761644043745,0.05214,114350.0,114340.0,0.45041978]
[1761644044248,0.05214,114350.0,114340.0,0.52914032]
[1761644044950,0.05214,114350.0,114340.0,0.45041978]
[1761644045144,0.05214,114350.0,114340.0,0.52914036]
[1761644045947,0.06566,114350.0,114340.0,0.52914036]
[1761644046340,0.05214,114350.0,114340.0,0.52914036]
[1761644047852,0.05214,114350.0,114340.0,0.56063381]
[1761644049957,0.05214,114350.0,114340.0,0.45041978]
[1761644050454,0.04914,114350.0,114340.0,0.45841978]
[1761644050652,0.04714,114350.0,114340.0,0.45841978]
[1761644050852,0.04714,114350.0,114340.0,0.56863381]
[1761644051248,0.04714,114350.0,114340.0,0.45841978]
[1761644052055,0.04714,114350.0,114340.0,0.1554873]
[1761644052249,0.04714,114350.0,114340.0,0.30695354]
[1761644052450,0.06011,114350.0,114340.0,0.38566703]
[1761644053054,0.21157624,114350.0,114340.0,0.22151079]
[1761644054751,0.29903534,114350.0,114340.0,0.22151079]
[1761644055955,0.21157624,114350.0,114340.0,0.22151079]
[1761644056452,0.29903444,114350.0,114340.0,0.22150939]
[1761644058957,0.21157624,114350.0,114340.0,0.22150939]
[1761644059154,0.36304248,114350.0,114340.0,0.13404349]
[1761644059367,0.29903384,114350.0,114340.0,0.08871349]
[1761644059567,0.45050008,114350.0,114340.0,0.08871349]
[1761644060057,0.45050008,114350.0,114340.0,0.01]
[1761644062761,0.45050008,114350.0,114340.0,0.0974668]
[1761644062959,0.29903384,114350.0,114340.0,0.0974668]
[1761644064462,0.89903384,114350.0,114340.0,0.0974668]
[1761644066158,0.89903384,114350.0,114340.0,0.01]
[1761644075866,0.89909367,114350.0,114340.0,0.01]
[1761644076262,0.89909367,114350.0,114340.0,0.0974679]
[1761644076468,0.7475676,114350.0,114340.0,0.1417879]
[1761644076663,0.89909367,114350.0,114340.0,0.1417879]
[1761644076872,0.89909367,114350.0,114340.0,0.1199379]
[1761644077168,0.06011,114350.0,114340.0,0.29331397]
[1761644077369,0.1475687,114350.0,114340.0,0.29331397]
[1761644077869,0.06011,114350.0,114340.0,0.1417879]
[1761644079171,0.06011,114350.0,114340.0,0.22050139]
[1761644082371,0.06011,114350.0,114340.0,0.37202746]
[1761644083167,0.147569,114350.0,114340.0,0.37202616]
[1761644083367,0.06011,114350.0,114340.0,0.37202616]
[1761644083869,0.06011,114350.0,114340.0,0.22050009]
[1761644091086,0.1475678,114350.0,114340.0,0.22050009]
[1761644091578,0.06011,114350.0,114340.0,0.22050009]
[1761644095786,0.1475681,114350.0,114340.0,0.22050009]
[1761644095986,0.29909417,114350.0,114340.0,0.22050009]
[1761644096188,0.29909417,114350.0,114340.0,0.22049929]
[1761644096383,0.29909417,114350.0,114340.0,0.19864929]
[1761644096580,0.29909417,114350.0,114340.0,0.1199358]
[1761644096881,0.29909417,114350.0,114340.0,0.1417858]
[1761644099089,0.29909417,114350.0,114340.0,0.22049929]
[1761644104291,0.29909417,114350.0,114340.0,0.11118349]
[1761644104493,0.29909417,114350.0,114340.0,0.08871349]
[1761644104795,0.29909417,114350.0,114340.0,0.17617909]
[1761644105192,0.29909417,114350.0,114340.0,0.08871349]
[1761644105393,0.29909417,114350.0,114340.0,0.01]
[1761644105995,0.89909417,114350.0,114340.0,0.01]
[1761644110306,0.89909417,114350.0,114340.0,0.0974664]
[1761644110501,0.06011,114350.0,114340.0,0.1424164]
[1761644110709,0.1475688,114350.0,114340.0,0.1424164]
[1761644117018,0.06011,114350.0,114340.0,0.1424164]
[1761644117213,0.04714,114350.0,114340.0,0.1499064]
[1761644122122,0.04714,114350.0,114340.0,0.30143247]
[1761644122123,0.002,114350.0,114340.0,0.30143247]
[1761644122618,0.002,114350.0,114340.0,0.38014596]
[1761644122920,0.02401,114350.0,114340.0,0.38014596]
[1761644123218,0.04648,114350.0,114340.0,0.38014596]
[1761644123604,0.02401,114350.0,114340.0,0.38014596]
[1761644126219,0.002,114350.0,114340.0,0.38014596]
[1761644128127,0.02401,114350.0,114340.0,0.38014596]
[1761644128326,0.002,114350.0,114340.0,0.30143247]
[1761644132435,0.02522,114350.0,114340.0,0.30143247]
[1761644132632,0.04661,114350.0,114340.0,0.30143247]
[1761644134235,0.04661,114350.0,114340.0,0.1499064]
[1761644134429,0.04661,114350.0,114340.0,0.30143247]
[1761644136124,0.002,114350.0,114340.0,0.30143247]
[1761644136524,0.02522,114350.0,114340.0,0.30143247]
[1761644137128,0.002,114350.0,114340.0,0.30143247]
[1761644137726,0.002,114350.0,114340.0,0.45280292]
[1761644138135,0.04461,114370.0,114360.0,0.1460824]
[1761644138337,0.04461,114370.0,114360.0,0.44897892]
[1761644138535,0.04461,114370.0,114360.0,0.29753066]
[1761644138834,0.0583,114370.0,114360.0,0.29753066]
[1761644139630,0.0603,114370.0,114360.0,0.30353066]
[1761644139936,0.0613,114370.0,114360.0,0.30353066]
[1761644140833,0.0613,114370.0,114360.0,0.3141346]
[1761644141132,0.45164132,114370.0,114360.0,0.02929]
[1761644141433,0.90019306,114370.0,114360.0,0.006]
[1761644142740,0.90019306,114370.0,114360.0,0.0934525]
[1761644142932,0.90019306,114370.0,114360.0,0.1167425]
[1761644146148,0.7487448,114370.0,114360.0,0.1167425]
[1761644146447,0.90019306,114370.0,114360.0,0.1167425]
[1761644147046,0.30019306,114370.0,114360.0,0.1167425]
[1761644151149,0.30019306,114370.0,114360.0,0.1394225]
[1761644151349,0.90019306,114370.0,114360.0,0.1394225]
[1761644160450,0.81274826,114370.0,114360.0,0.29087076]
[1761644160658,0.0613,114370.0,114360.0,0.29087076]
[1761644160956,0.04761,114370.0,114360.0,0.45103902]
[1761644163562,0.06101,114370.0,114360.0,0.45103902]
[1761644164266,0.04761,114370.0,114360.0,0.45103902]
[1761644164569,0.04761,114370.0,114360.0,0.52962617]
[1761644168673,0.003,114370.0,114360.0,0.52962617]
[1761644169273,0.003,114370.0,114360.0,0.60113368]
[1761644169570,0.003,114370.0,114360.0,0.60377368]
[1761644169975,0.003,114370.0,114360.0,0.52518653]
[1761644170168,0.003,114370.0,114360.0,0.63540056]
[1761644171363,0.003,114370.0,114360.0,0.63276056]
[1761644174777,0.003,114370.0,114360.0,1.23276056]
[1761644179382,0.003,114370.0,114360.0,0.92986404]
[1761644179583,0.02536,114370.0,114360.0,1.23276056]
[1761644179984,0.003,114370.0,114360.0,1.23276056]
[1761644180482,0.003,114370.0,114360.0,1.23540056]
[1761644180784,0.003,114370.0,114360.0,1.12518653]
[1761644181083,0.003,114370.0,114360.0,1.23276056]
[1761644182283,0.003,114370.0,114360.0,1.12254653]
[1761644183593,0.02536,114370.0,114360.0,1.12254653]
[1761644183789,0.21265826,114370.0,114360.0,0.44088498]
[1761644183977,0.06121,114370.0,114360.0,0.59233324]
[1761644184488,0.06121,114370.0,114360.0,0.51382653]
[1761644185992,0.06121,114370.0,114360.0,0.36237827]
[1761644188494,0.30010336,114370.0,114360.0,0.1394225]
[1761644188698,0.30010336,114370.0,114360.0,0.29087076]
[1761644191594,0.30010336,114370.0,114360.0,0.36937747]
[1761644192394,0.21265826,114370.0,114360.0,0.36937747]
[1761644194597,0.30010346,114370.0,114360.0,0.36937747]
[1761644197790,0.1486552,114370.0,114360.0,0.21792921]
[1761644201409,0.30008409,114370.0,114360.0,0.21792941]
[1761644201906,0.1486552,114370.0,114360.0,0.21792941]
[1761644209521,0.04803,114370.0,114360.0,0.3820183]
[1761644211423,0.04803,114370.0,114360.0,0.30351159]
[1761644213221,0.04803,114370.0,114360.0,0.41372562]
[1761644219226,0.04803,114370.0,114360.0,0.24963673]
[1761644219227,0.06167,114370.0,114360.0,0.24963673]
[1761644219426,0.06167,114370.0,114360.0,0.40106562]
[1761644219630,0.06167,114370.0,114360.0,0.29085159]
[1761644220327,0.06167,114370.0,114360.0,0.36954846]
[1761644225528,0.06167,114370.0,114360.0,0.38220846]
[1761644226028,0.04803,114370.0,114360.0,0.38220846]
[1761644226222,0.02536,114370.0,114360.0,0.38220846]
[1761644226628,0.04745,114370.0,114360.0,0.38220846]
[1761644227731,0.003,114370.0,114360.0,0.38220846]
[1761644228325,0.02408,114370.0,114360.0,0.38220846]
[1761644228621,0.04666,114370.0,114360.0,0.38220846]
[1761644230530,0.003,114370.0,114360.0,0.38220846]
[1761644230826,0.04666,114370.0,114360.0,0.38220846]
[1761644234326,0.04666,114370.0,114360.0,0.30351159]
[1761644234525,0.04666,114370.0,114360.0,0.41372562]
[1761644235738,0.04666,114370.0,114360.0,0.38219312]
[1761644238240,0.05954,114370.0,114360.0,0.38219312]
[1761644238637,0.05954,114370.0,114360.0,0.36953312]
[1761644239139,0.1469849,114370.0,114360.0,0.21810423]
[1761644239438,0.05954,114370.0,114360.0,0.21810423]
[1761644240038,0.05954,114370.0,114360.0,0.36953312]
[1761644240238,0.05954,114370.0,114360.0,0.21810423]
[1761644246144,0.003,114370.0,114360.0,0.38219312]
[1761644246543,0.003,114370.0,114360.0,0.30351159]
[1761644246742,0.003,114370.0,114360.0,0.45494048]
[1761644246943,0.003,114370.0,114360.0,0.30351159]
[1761644247747,0.003,114370.0,114360.0,0.41372562]
[1761644252945,0.003,114370.0,114360.0,0.30351159]
[1761644254648,0.003,114370.0,114360.0,0.41372562]
[1761644259852,0.003,114370.0,114360.0,0.56508655]
[1761644262154,0.003,114370.0,114360.0,0.63598817]
[1761644264845,0.003,114370.0,114360.0,0.63334817]
[1761644265160,0.003,114370.0,114360.0,0.63598817]
[1761644265354,0.003,114370.0,114360.0,0.63334817]
[1761644265944,0.003,114370.0,114360.0,0.63598817]
[1761644266750,0.003,114370.0,114360.0,0.63334817]
[1761644268958,0.21428491,114370.0,114360.0,0.31789835]
[1761644269257,0.21428491,114370.0,114360.0,0.24963673]
[1761644269758,0.21428491,114370.0,114360.0,0.29081761]
[1761644270054,0.06289,114370.0,114360.0,0.29081761]
[1761644270259,0.21428491,114370.0,114360.0,0.29081761]
[1761644272459,0.21428491,114370.0,114360.0,0.3694877]
[1761644273062,0.06289,114370.0,114360.0,0.3694877]
[1761644273257,0.21428491,114370.0,114360.0,0.21809279]
[1761644273462,0.21428491,114370.0,114360.0,0.3694877]
[1761644274260,0.21428491,114370.0,114360.0,0.29081761]
[1761644278966,0.21428491,114370.0,114360.0,0.1394227]
[1761644279268,0.21428491,114370.0,114360.0,0.29081761]
[1761644279962,0.06289,114370.0,114360.0,0.29081761]
[1761644280168,0.21428491,114370.0,114360.0,0.29081761]
[1761644280567,0.30172951,114370.0,114360.0,0.29081761]
[1761644280768,0.21428491,114370.0,114360.0,0.29081761]
[1761644284370,0.06289,114370.0,114360.0,0.29081761]
[1761644284561,0.06289,114370.0,114360.0,0.40103164]
[1761644284562,0.21428491,114370.0,114360.0,0.40103164]
[1761644284763,0.06289,114370.0,114360.0,0.40103164]
[1761644285982,0.06289,114370.0,114360.0,0.55242655]
[1761644286679,0.06289,114370.0,114360.0,0.63109716]
[1761644287079,0.06289,114370.0,114360.0,0.52088313]
[1761644291485,0.06289,114370.0,114360.0,0.53354313]
[1761644293790,0.06289,114370.0,114360.0,0.63354313]
[1761644294190,0.0489,114370.0,114360.0,0.63354313]
[1761644296594,0.0489,114370.0,114360.0,0.55487252]
[1761644296894,0.0489,114370.0,114360.0,0.66508655]
[1761644298797,0.0489,114370.0,114360.0,0.55487252]
[1761644300694,0.0489,114370.0,114360.0,0.66508655]
[1761644300886,0.21341491,114370.0,114360.0,0.66508655]
[1761644301082,0.21341491,114370.0,114360.0,0.55487252]
[1761644301287,0.21341491,114370.0,114360.0,0.39081761]
[1761644301482,0.21341491,114370.0,114360.0,0.54221252]
[1761644301687,0.21341491,114370.0,114360.0,0.39081761]
[1761644302392,0.21341491,114370.0,114360.0,0.50103164]
[1761644307899,0.0489,114370.0,114360.0,0.51369164]
[1761644308197,0.003,114370.0,114360.0,0.36229673]
[1761644308398,0.003,114370.0,114360.0,0.66508655]
[1761644309294,0.003,114370.0,114360.0,0.73571962]
[1761644309495,0.003,114370.0,114360.0,0.73835962]
[1761644310702,0.003,114370.0,114360.0,0.73571962]
[1761644310998,0.003,114370.0,114360.0,0.73835962]
[1761644312701,0.003,114370.0,114360.0,0.73571962]
[1761644313603,0.0466,114370.0,114360.0,0.73571962]
[1761644321711,0.0466,114370.0,114360.0,0.58433654]
[1761644325812,0.0466,114370.0,114360.0,0.4329298]
[1761644326014,0.0466,114370.0,114360.0,0.58433654]
[1761644328711,0.05941,114370.0,114360.0,0.4202698]
[1761644328916,0.21081674,114370.0,114360.0,0.34963673]
[1761644329103,0.05941,114370.0,114360.0,0.34963673]
[1761644334418,0.05941,114370.0,114360.0,0.2394227]
[1761644335019,0.05941,114370.0,114360.0,0.34963673]
[1761644335715,0.05941,114370.0,114360.0,0.2394227]
[1761644336623,0.05941,114370.0,114360.0,0.31809739]
[1761644341623,0.05941,114370.0,114360.0,0.2394227]
[1761644342928,0.05941,114370.0,114360.0,0.31808938]
[1761644357955,0.05941,114370.0,114360.0,0.34963673]
[1761644358154,0.05941,114370.0,114360.0,0.42833972]
[1761644358356,0.05941,114370.0,114360.0,0.31812569]
[1761644360857,0.05941,114370.0,114360.0,0.2394227]
[1761644361250,0.05941,114370.0,114360.0,0.31812569]
[1761644362259,0.003,114370.0,114360.0,0.48219243]
[1761644362653,0.02516,114370.0,114360.0,0.48219243]
[1761644363963,0.003,114370.0,114360.0,0.48219243]
[1761644368362,0.02516,114370.0,114360.0,0.48219243]
[1761644368758,0.003,114370.0,114360.0,0.48219243]
[1761644369162,0.003,114370.0,114360.0,0.40348944]
[1761644369362,0.02543,114370.0,114360.0,0.40348944]
[1761644369563,0.04786,114370.0,114360.0,0.40348944]
[1761644374668,0.02543,114370.0,114360.0,0.40348944]
[1761644377070,0.003,114370.0,114360.0,0.40348944]
[1761644377867,0.04786,114370.0,114360.0,0.2520827]
[1761644378075,0.02543,114370.0,114360.0,0.40348944]
[1761644378971,0.04786,114370.0,114360.0,0.40348944]
[1761644379168,0.04786,114370.0,114360.0,0.48217732]
[1761644381079,0.04786,114370.0,114360.0,0.33077058]
[1761644381270,0.04786,114370.0,114360.0,0.48217732]
[1761644383676,0.19928165,114370.0,114360.0,0.48219223]
[1761644385974,0.003,114370.0,114360.0,0.70762148]
[1761644386168,0.003,114370.0,114360.0,0.6289336]
[1761644386485,0.19628165,114390.0,114380.0,0.138927]
[1761644386773,0.19628165,114390.0,114380.0,0.29034865]
[1761644386978,0.28371095,114390.0,114380.0,0.29034865]
[1761644388271,0.28571095,114390.0,114380.0,0.29234865]
[1761644388480,0.04886,114390.0,114380.0,0.29234865]
[1761644389080,0.04486,114390.0,114380.0,0.29034865]
[1761644389282,0.04786,114390.0,114380.0,0.29334865]
[1761644391782,0.1352892,114390.0,114380.0,0.29334865]
[1761644393380,0.1352892,114390.0,114380.0,0.141927]
[1761644393585,0.1484492,114390.0,114380.0,0.28585865]
[1761644393784,0.29987085,114390.0,114380.0,0.28585865]
[1761644395387,0.1484492,114390.0,114380.0,0.28585865]
[1761644395789,0.1352892,114390.0,114380.0,0.29334865]
[1761644395987,0.28671085,114390.0,114380.0,0.29334865]
[1761644396485,0.1352892,114390.0,114380.0,0.29334865]
[1761644398686,0.04786,114390.0,114380.0,0.29334865]
[1761644399085,0.04786,114390.0,114380.0,0.4447703]
[1761644399281,0.04786,114390.0,114380.0,0.29334865]
[1761644399481,0.04786,114390.0,114380.0,0.4447703]
[1761644400688,0.003,114390.0,114380.0,0.4447703]
[1761644401686,0.02495,114390.0,114380.0,0.52345818]
[1761644401985,0.003,114390.0,114380.0,0.52345818]
[1761644403089,0.003,114390.0,114380.0,0.52609818]
[1761644404484,0.003,114390.0,114380.0,0.52345818]
[1761644404685,0.003,114390.0,114380.0,0.52609818]
[1761644404894,0.003,114390.0,114380.0,0.52345818]
[1761644405894,0.003,114390.0,114380.0,0.52609818]
[1761644406490,0.003,114390.0,114380.0,0.52345818]
[1761644408496,0.003,114390.0,114380.0,0.52609818]
[1761644410795,0.003,114390.0,114380.0,0.4474103]
[1761644411595,0.003,114390.0,114380.0,0.4447703]
[1761644414496,0.0262,114390.0,114380.0,0.4447703]
[1761644414802,0.003,114390.0,114380.0,0.4447703]
[1761644418598,0.0262,114390.0,114380.0,0.25214103]
[1761644418803,0.0262,114390.0,114380.0,0.33072097]
[1761644419004,0.0262,114390.0,114380.0,0.52335024]
[1761644419400,0.0262,114390.0,114380.0,0.4447703]
[1761644419597,0.0262,114390.0,114380.0,0.52335278]
[1761644422315,0.0262,114390.0,114380.0,0.4447703]
[1761644423318,0.0262,114390.0,114380.0,0.52337014]
[1761644424319,0.0262,114390.0,114380.0,0.4447703]
[1761644424823,0.0262,114390.0,114380.0,0.52337877]
[1761644426523,0.003,114390.0,114380.0,0.52337877]
[1761644427219,0.003,114390.0,114380.0,0.4447703]
[1761644427521,0.003,114390.0,114380.0,0.55498433]
[1761644434529,0.04812,114390.0,114380.0,0.55498433]
[1761644435527,0.06074,114390.0,114380.0,0.55498433]